Workbook

Sheet Enrollment Dashboard
C2: College Enrollment Dashboard
C4: Yearly Enrollment Distribution by Colleges
AI5: 5
E6: Architecture
E7: Arts & Sciences
E8: Business
E9: Education
E10: Engineering
E11: Journalism
E12: Law
E13: Music
E14: All
C17: College Enrollment Distribution by Years
AI18: 2
E19: 1999
E20: 2000
E21: 2001
E22: 2002
E23: 2003
E24: 2004
E25: 2005
E26: 2006
E27: 2007
E28: All

Sheet Readme
D3: Follow the steps to enable your online Dashboard.
C4: 1) | D4: This template contains sample data for college enrollments by year, colleges and departments.
D5: If your data type fits, you can just edit "Data" and "Fields" sheets.
D6: However, it is suggested to create your own dashboard file and follow the further steps to create your online dashboard.
C7: 2) | D7: Visit the site below:
D8: http://www.spreadsheetweb.com/getting_started.htm
D9: You will only need the username and password to create your online invoice form.
C10: 3) | D10: Visit the site below:
D11: https://www4.spreadsheetweb.com/SpreadsheetWEB//
D12: Login to page with your new account information.
C13: 4) | D13: Click "Add Web Application" to upload this file. Your online dashboard will be created automatically.
D14: You can simply use the dashboard from that link or place it on your website.
C15: >> | D15: Your online dashboard will look like:
D16: https://www4.spreadsheetweb.com/SpreadSheetWEB/Output.aspx?ApplicationId=b40ef3fa-5aa6-4b50-9562-f41ccb3ef74c
C17: >> | D17: In order to see more online applications created with PSW you can check the link below:
D18: http://www.spreadsheetweb.com/demos.htm
D21: Copyright (c) 2009 Pagos, Inc., http://www.pagos.com/

Sheet Data
B2: Year | C2: College | D2: Department | E2: Degree | F2: Class | G2: Enrollment
B3: 1999 | C3: Architecture | D3: Arch/Planning | E3: UG | F3: Lower | G3: 50
B4: 1999 | C4: Architecture | D4: Arch/Planning | E4: UG | F4: Upper | G4: 96
B5: 2000 | C5: Architecture | D5: Arch/Planning | E5: UG | F5: Lower | G5: 74
B6: 2000 | C6: Architecture | D6: Arch/Planning | E6: UG | F6: Upper | G6: 66
B7: 2001 | C7: Architecture | D7: Arch/Planning | E7: UG | F7: Lower | G7: 64
B8: 2001 | C8: Architecture | D8: Arch/Planning | E8: UG | F8: Upper | G8: 106
B9: 2002 | C9: Architecture | D9: Arch/Planning | E9: UG | F9: Lower | G9: 64
B10: 2002 | C10: Architecture | D10: Arch/Planning | E10: UG | F10: Upper | G10: 138
B11: 2003 | C11: Architecture | D11: Arch/Planning | E11: UG | F11: Lower | G11: 76
B12: 2003 | C12: Architecture | D12: Arch/Planning | E12: UG | F12: Upper | G12: 146
B13: 2004 | C13: Architecture | D13: Arch/Planning | E13: UG | F13: Lower | G13: 92
B14: 2004 | C14: Architecture | D14: Arch/Planning | E14: UG | F14: Upper | G14: 144
B15: 2005 | C15: Architecture | D15: Arch/Planning | E15: UG | F15: Lower | G15: 28
B16: 2005 | C16: Architecture | D16: Arch/Planning | E16: UG | F16: Upper | G16: 54
B17: 2006 | C17: Architecture | D17: Arch/Planning | E17: UG | F17: Lower | G17: 24
B18: 2006 | C18: Architecture | D18: Arch/Planning | E18: UG | F18: Upper | G18: 116
B19: 2007 | C19: Architecture | D19: Arch/Planning | E19: UG | F19: Lower | G19: 154
B20: 2007 | C20: Architecture | D20: Arch/Planning | E20: UG | F20: Upper | G20: 96
B21: 1999 | C21: Arts & Sciences | D21: Arts & Sciences Admin | E21: Grad | F21: Grad | G21: 5
B22: 1999 | C22: Arts & Sciences | D22: A&S AH Pgm/Cntr | E22: UG | F22: Upper | G22: 5
B23: 1999 | C23: Arts & Sciences | D23: A&S SS Pgm/Cntr | E23: UG | F23: Lower | G23: 14
B24: 1999 | C24: Arts & Sciences | D24: A&S SS Pgm/Cntr | E24: UG | F24: Upper | G24: 12
B25: 1999 | C25: Arts & Sciences | D25: Anthropology | E25: Grad | F25: Grad | G25: 38
B26: 1999 | C26: Arts & Sciences | D26: Anthropology | E26: UG | F26: Lower | G26: 37
B27: 1999 | C27: Arts & Sciences | D27: Anthropology | E27: UG | F27: Upper | G27: 28
B28: 1999 | C28: Arts & Sciences | D28: Applied Math | E28: Grad | F28: Grad | G28: 39
B29: 1999 | C29: Arts & Sciences | D29: Applied Math | E29: UG | F29: Lower | G29: 37
B30: 1999 | C30: Arts & Sciences | D30: Applied Math | E30: UG | F30: Upper | G30: 24
B31: 1999 | C31: Arts & Sciences | D31: Art/Art History | E31: Grad | F31: Grad | G31: 32
B32: 1999 | C32: Arts & Sciences | D32: Art/Art History | E32: UG | F32: Lower | G32: 17
B33: 1999 | C33: Arts & Sciences | D33: Art/Art History | E33: UG | F33: Upper | G33: 21
B34: 1999 | C34: Arts & Sciences | D34: Astro Plnt Sci | E34: Grad | F34: Grad | G34: 42
B35: 1999 | C35: Arts & Sciences | D35: Astro Plnt Sci | E35: UG | F35: Lower | G35: 31
B36: 1999 | C36: Arts & Sciences | D36: Astro Plnt Sci | E36: UG | F36: Upper | G36: 11
B37: 1999 | C37: Arts & Sciences | D37: Atms Ocean Sci | E37: Grad | F37: Grad | G37: 25
B38: 1999 | C38: Arts & Sciences | D38: Atms Ocean Sci | E38: UG | F38: Lower | G38: 16
B39: 1999 | C39: Arts & Sciences | D39: Atms Ocean Sci | E39: UG | F39: Upper | G39: 23
B40: 1999 | C40: Arts & Sciences | D40: Biology-Ecol/Ev | E40: Grad | F40: Grad | G40: 50
B41: 1999 | C41: Arts & Sciences | D41: Biology-Ecol/Ev | E41: UG | F41: Lower | G41: 34
B42: 1999 | C42: Arts & Sciences | D42: Biology-Ecol/Ev | E42: UG | F42: Upper | G42: 43
B43: 1999 | C43: Arts & Sciences | D43: Biology-MCD | E43: Grad | F43: Grad | G43: 11
B44: 1999 | C44: Arts & Sciences | D44: Biology-MCD | E44: UG | F44: Lower | G44: 19
B45: 1999 | C45: Arts & Sciences | D45: Biology-MCD | E45: UG | F45: Upper | G45: 18
B46: 1999 | C46: Arts & Sciences | D46: Chem/Biochem | E46: Grad | F46: Grad | G46: 16
B47: 1999 | C47: Arts & Sciences | D47: Chem/Biochem | E47: UG | F47: Lower | G47: 32
B48: 1999 | C48: Arts & Sciences | D48: Chem/Biochem | E48: UG | F48: Upper | G48: 35
B49: 1999 | C49: Arts & Sciences | D49: Classics | E49: Grad | F49: Grad | G49: 29
B50: 1999 | C50: Arts & Sciences | D50: Classics | E50: UG | F50: Lower | G50: 16
B51: 1999 | C51: Arts & Sciences | D51: Classics | E51: UG | F51: Upper | G51: 16
B52: 1999 | C52: Arts & Sciences | D52: Communication | E52: Grad | F52: Grad | G52: 26
B53: 1999 | C53: Arts & Sciences | D53: Communication | E53: UG | F53: Lower | G53: 20
B54: 1999 | C54: Arts & Sciences | D54: Communication | E54: UG | F54: Upper | G54: 17
B55: 1999 | C55: Arts & Sciences | D55: Comp Lit/Human | E55: Grad | F55: Grad | G55: 24
B56: 1999 | C56: Arts & Sciences | D56: Comp Lit/Human | E56: UG | F56: Lower | G56: 27
B57: 1999 | C57: Arts & Sciences | D57: Comp Lit/Human | E57: UG | F57: Upper | G57: 50
B58: 1999 | C58: Arts & Sciences | D58: E Asian Lng/Civ | E58: Grad | F58: Grad | G58: 20
B59: 1999 | C59: Arts & Sciences | D59: E Asian Lng/Civ | E59: UG | F59: Lower | G59: 38
B60: 1999 | C60: Arts & Sciences | D60: E Asian Lng/Civ | E60: UG | F60: Upper | G60: 27
B61: 1999 | C61: Arts & Sciences | D61: Economics | E61: Grad | F61: Grad | G61: 16
B62: 1999 | C62: Arts & Sciences | D62: Economics | E62: UG | F62: Lower | G62: 34
B63: 1999 | C63: Arts & Sciences | D63: Economics | E63: UG | F63: Upper | G63: 29
B64: 1999 | C64: Arts & Sciences | D64: English | E64: Grad | F64: Grad | G64: 18
B65: 1999 | C65: Arts & Sciences | D65: English | E65: UG | F65: Lower | G65: 23
B66: 1999 | C66: Arts & Sciences | D66: English | E66: UG | F66: Upper | G66: 50
B67: 1999 | C67: Arts & Sciences | D67: Envirn Studies | E67: UG | F67: Upper | G67: 1
B68: 1999 | C68: Arts & Sciences | D68: Ethnic Studies | E68: UG | F68: Lower | G68: 22
B69: 1999 | C69: Arts & Sciences | D69: Ethnic Studies | E69: UG | F69: Upper | G69: 24
B70: 1999 | C70: Arts & Sciences | D70: Film Studies | E70: UG | F70: Lower | G70: 14
B71: 1999 | C71: Arts & Sciences | D71: Film Studies | E71: UG | F71: Upper | G71: 17
B72: 1999 | C72: Arts & Sciences | D72: French/Italian | E72: Grad | F72: Grad | G72: 18
B73: 1999 | C73: Arts & Sciences | D73: French/Italian | E73: UG | F73: Lower | G73: 40
B74: 1999 | C74: Arts & Sciences | D74: French/Italian | E74: UG | F74: Upper | G74: 37
B75: 1999 | C75: Arts & Sciences | D75: Geography | E75: Grad | F75: Grad | G75: 12
B76: 1999 | C76: Arts & Sciences | D76: Geography | E76: UG | F76: Lower | G76: 34
B77: 1999 | C77: Arts & Sciences | D77: Geography | E77: UG | F77: Upper | G77: 17
B78: 1999 | C78: Arts & Sciences | D78: Geology | E78: Grad | F78: Grad | G78: 12
B79: 1999 | C79: Arts & Sciences | D79: Geology | E79: UG | F79: Lower | G79: 33
B80: 1999 | C80: Arts & Sciences | D80: Geology | E80: UG | F80: Upper | G80: 26
B81: 1999 | C81: Arts & Sciences | D81: German/Slavic | E81: Grad | F81: Grad | G81: 18
B82: 1999 | C82: Arts & Sciences | D82: German/Slavic | E82: UG | F82: Lower | G82: 23
B83: 1999 | C83: Arts & Sciences | D83: German/Slavic | E83: UG | F83: Upper | G83: 18
B84: 1999 | C84: Arts & Sciences | D84: History | E84: Grad | F84: Grad | G84: 12
B85: 1999 | C85: Arts & Sciences | D85: History | E85: UG | F85: Lower | G85: 58
B86: 1999 | C86: Arts & Sciences | D86: History | E86: UG | F86: Upper | G86: 36
B87: 1999 | C87: Arts & Sciences | D87: Honors Program | E87: UG | F87: Lower | G87: 16
B88: 1999 | C88: Arts & Sciences | D88: Honors Program | E88: UG | F88: Upper | G88: 26
B89: 1999 | C89: Arts & Sciences | D89: Int Physiology | E89: Grad | F89: Grad | G89: 34
B90: 1999 | C90: Arts & Sciences | D90: Int Physiology | E90: UG | F90: Lower | G90: 47
B91: 1999 | C91: Arts & Sciences | D91: Int Physiology | E91: UG | F91: Upper | G91: 16
B92: 1999 | C92: Arts & Sciences | D92: Intnl Affairs | E92: UG | F92: Lower | G92: 11
B93: 1999 | C93: Arts & Sciences | D93: Intnl Affairs | E93: UG | F93: Upper | G93: 22
B94: 1999 | C94: Arts & Sciences | D94: Linguistics | E94: Grad | F94: Grad | G94: 31
B95: 1999 | C95: Arts & Sciences | D95: Linguistics | E95: UG | F95: Lower | G95: 27
B96: 1999 | C96: Arts & Sciences | D96: Linguistics | E96: UG | F96: Upper | G96: 30
B97: 1999 | C97: Arts & Sciences | D97: Mathematics | E97: Grad | F97: Grad | G97: 12
B98: 1999 | C98: Arts & Sciences | D98: Mathematics | E98: UG | F98: Lower | G98: 30
B99: 1999 | C99: Arts & Sciences | D99: Mathematics | E99: UG | F99: Upper | G99: 25
B100: 1999 | C100: Arts & Sciences | D100: Philosophy | E100: Grad | F100: Grad | G100: 43
B101: 1999 | C101: Arts & Sciences | D101: Philosophy | E101: UG | F101: Lower | G101: 25
B102: 1999 | C102: Arts & Sciences | D102: Philosophy | E102: UG | F102: Upper | G102: 19
B103: 1999 | C103: Arts & Sciences | D103: Physics | E103: Grad | F103: Grad | G103: 17
B104: 1999 | C104: Arts & Sciences | D104: Physics | E104: UG | F104: Lower | G104: 87
B105: 1999 | C105: Arts & Sciences | D105: Physics | E105: UG | F105: Upper | G105: 16
B106: 1999 | C106: Arts & Sciences | D106: Political Sci | E106: Grad | F106: Grad | G106: 11
B107: 1999 | C107: Arts & Sciences | D107: Political Sci | E107: UG | F107: Lower | G107: 34
B108: 1999 | C108: Arts & Sciences | D108: Political Sci | E108: UG | F108: Upper | G108: 26
B109: 1999 | C109: Arts & Sciences | D109: Psychology | E109: Grad | F109: Grad | G109: 21
B110: 1999 | C110: Arts & Sciences | D110: Psychology | E110: UG | F110: Lower | G110: 27
B111: 1999 | C111: Arts & Sciences | D111: Psychology | E111: UG | F111: Upper | G111: 38
B112: 1999 | C112: Arts & Sciences | D112: Relig Studies | E112: Grad | F112: Grad | G112: 24
B113: 1999 | C113: Arts & Sciences | D113: Relig Studies | E113: UG | F113: Lower | G113: 20
B114: 1999 | C114: Arts & Sciences | D114: Relig Studies | E114: UG | F114: Upper | G114: 15
B115: 1999 | C115: Arts & Sciences | D115: Sociology | E115: Grad | F115: Grad | G115: 12
B116: 1999 | C116: Arts & Sciences | D116: Sociology | E116: UG | F116: Lower | G116: 22
B117: 1999 | C117: Arts & Sciences | D117: Sociology | E117: UG | F117: Upper | G117: 24
B118: 1999 | C118: Arts & Sciences | D118: Spanish/Port | E118: Grad | F118: Grad | G118: 35
B119: 1999 | C119: Arts & Sciences | D119: Spanish/Port | E119: UG | F119: Lower | G119: 27
B120: 1999 | C120: Arts & Sciences | D120: Spanish/Port | E120: UG | F120: Upper | G120: 22
B121: 1999 | C121: Arts & Sciences | D121: Spch/Lang/Hear | E121: Grad | F121: Grad | G121: 12
B122: 1999 | C122: Arts & Sciences | D122: Spch/Lang/Hear | E122: UG | F122: Lower | G122: 32
B123: 1999 | C123: Arts & Sciences | D123: Spch/Lang/Hear | E123: UG | F123: Upper | G123: 14
B124: 1999 | C124: Arts & Sciences | D124: Theatre/Dance | E124: Grad | F124: Grad | G124: 34
B125: 1999 | C125: Arts & Sciences | D125: Theatre/Dance | E125: UG | F125: Lower | G125: 22
B126: 1999 | C126: Arts & Sciences | D126: Theatre/Dance | E126: UG | F126: Upper | G126: 24
B127: 1999 | C127: Arts & Sciences | D127: Womens Studies | E127: UG | F127: Lower | G127: 14
B128: 1999 | C128: Arts & Sciences | D128: Womens Studies | E128: UG | F128: Upper | G128: 12
B129: 1999 | C129: Arts & Sciences | D129: Writing Program | E129: UG | F129: Lower | G129: 8
B130: 1999 | C130: Arts & Sciences | D130: Writing Program | E130: UG | F130: Upper | G130: 21
B131: 2000 | C131: Arts & Sciences | D131: Arts & Sciences Admin | E131: Grad | F131: Grad | G131: 1
B132: 2000 | C132: Arts & Sciences | D132: Arts & Sciences Admin | E132: UG | F132: Upper | G132: 10
B133: 2000 | C133: Arts & Sciences | D133: A&S AH Pgm/Cntr | E133: UG | F133: Lower | G133: 10
B134: 2000 | C134: Arts & Sciences | D134: A&S AH Pgm/Cntr | E134: UG | F134: Upper | G134: 7
B135: 2000 | C135: Arts & Sciences | D135: A&S SS Pgm/Cntr | E135: UG | F135: Lower | G135: 17
B136: 2000 | C136: Arts & Sciences | D136: A&S SS Pgm/Cntr | E136: UG | F136: Upper | G136: 1
B137: 2000 | C137: Arts & Sciences | D137: Anthropology | E137: Grad | F137: Grad | G137: 34
B138: 2000 | C138: Arts & Sciences | D138: Anthropology | E138: UG | F138: Lower | G138: 51
B139: 2000 | C139: Arts & Sciences | D139: Anthropology | E139: UG | F139: Upper | G139: 22
B140: 2000 | C140: Arts & Sciences | D140: Applied Math | E140: Grad | F140: Grad | G140: 36
B141: 2000 | C141: Arts & Sciences | D141: Applied Math | E141: UG | F141: Lower | G141: 31
B142: 2000 | C142: Arts & Sciences | D142: Applied Math | E142: UG | F142: Upper | G142: 27
B143: 2000 | C143: Arts & Sciences | D143: Art/Art History | E143: Grad | F143: Grad | G143: 30
B144: 2000 | C144: Arts & Sciences | D144: Art/Art History | E144: UG | F144: Lower | G144: 13
B145: 2000 | C145: Arts & Sciences | D145: Art/Art History | E145: UG | F145: Upper | G145: 18
B146: 2000 | C146: Arts & Sciences | D146: Astro Plnt Sci | E146: Grad | F146: Grad | G146: 34
B147: 2000 | C147: Arts & Sciences | D147: Astro Plnt Sci | E147: UG | F147: Lower | G147: 43
B148: 2000 | C148: Arts & Sciences | D148: Astro Plnt Sci | E148: UG | F148: Upper | G148: 38
B149: 2000 | C149: Arts & Sciences | D149: Atms Ocean Sci | E149: Grad | F149: Grad | G149: 36
B150: 2000 | C150: Arts & Sciences | D150: Atms Ocean Sci | E150: UG | F150: Lower | G150: 20
B151: 2000 | C151: Arts & Sciences | D151: Atms Ocean Sci | E151: UG | F151: Upper | G151: 16
B152: 2000 | C152: Arts & Sciences | D152: Biology-Ecol/Ev | E152: Grad | F152: Grad | G152: 11
B153: 2000 | C153: Arts & Sciences | D153: Biology-Ecol/Ev | E153: UG | F153: Lower | G153: 20
B154: 2000 | C154: Arts & Sciences | D154: Biology-Ecol/Ev | E154: UG | F154: Upper | G154: 42
B155: 2000 | C155: Arts & Sciences | D155: Biology-MCD | E155: Grad | F155: Grad | G155: 39
B156: 2000 | C156: Arts & Sciences | D156: Biology-MCD | E156: UG | F156: Lower | G156: 17
B157: 2000 | C157: Arts & Sciences | D157: Biology-MCD | E157: UG | F157: Upper | G157: 17
B158: 2000 | C158: Arts & Sciences | D158: Chem/Biochem | E158: Grad | F158: Grad | G158: 29
B159: 2000 | C159: Arts & Sciences | D159: Chem/Biochem | E159: UG | F159: Lower | G159: 29
B160: 2000 | C160: Arts & Sciences | D160: Chem/Biochem | E160: UG | F160: Upper | G160: 23
B161: 2000 | C161: Arts & Sciences | D161: Classics | E161: Grad | F161: Grad | G161: 17
B162: 2000 | C162: Arts & Sciences | D162: Classics | E162: UG | F162: Lower | G162: 16
B163: 2000 | C163: Arts & Sciences | D163: Classics | E163: UG | F163: Upper | G163: 12
B164: 2000 | C164: Arts & Sciences | D164: Communication | E164: Grad | F164: Grad | G164: 28
B165: 2000 | C165: Arts & Sciences | D165: Communication | E165: UG | F165: Lower | G165: 17
B166: 2000 | C166: Arts & Sciences | D166: Communication | E166: UG | F166: Upper | G166: 18
B167: 2000 | C167: Arts & Sciences | D167: Comp Lit/Human | E167: Grad | F167: Grad | G167: 23
B168: 2000 | C168: Arts & Sciences | D168: Comp Lit/Human | E168: UG | F168: Lower | G168: 30
B169: 2000 | C169: Arts & Sciences | D169: Comp Lit/Human | E169: UG | F169: Upper | G169: 11
B170: 2000 | C170: Arts & Sciences | D170: E Asian Lng/Civ | E170: Grad | F170: Grad | G170: 27
B171: 2000 | C171: Arts & Sciences | D171: E Asian Lng/Civ | E171: UG | F171: Lower | G171: 42
B172: 2000 | C172: Arts & Sciences | D172: E Asian Lng/Civ | E172: UG | F172: Upper | G172: 28
B173: 2000 | C173: Arts & Sciences | D173: Economics | E173: Grad | F173: Grad | G173: 17
B174: 2000 | C174: Arts & Sciences | D174: Economics | E174: UG | F174: Lower | G174: 30
B175: 2000 | C175: Arts & Sciences | D175: Economics | E175: UG | F175: Upper | G175: 33
B176: 2000 | C176: Arts & Sciences | D176: English | E176: Grad | F176: Grad | G176: 17
B177: 2000 | C177: Arts & Sciences | D177: English | E177: UG | F177: Lower | G177: 18
B178: 2000 | C178: Arts & Sciences | D178: English | E178: UG | F178: Upper | G178: 57
B179: 2000 | C179: Arts & Sciences | D179: Envirn Studies | E179: UG | F179: Upper | G179: 15
B180: 2000 | C180: Arts & Sciences | D180: Ethnic Studies | E180: UG | F180: Lower | G180: 18
B181: 2000 | C181: Arts & Sciences | D181: Ethnic Studies | E181: UG | F181: Upper | G181: 30
B182: 2000 | C182: Arts & Sciences | D182: Film Studies | E182: UG | F182: Lower | G182: 16
B183: 2000 | C183: Arts & Sciences | D183: Film Studies | E183: UG | F183: Upper | G183: 16
B184: 2000 | C184: Arts & Sciences | D184: French/Italian | E184: Grad | F184: Grad | G184: 19
B185: 2000 | C185: Arts & Sciences | D185: French/Italian | E185: UG | F185: Lower | G185: 19
B186: 2000 | C186: Arts & Sciences | D186: French/Italian | E186: UG | F186: Upper | G186: 11
B187: 2000 | C187: Arts & Sciences | D187: Geography | E187: Grad | F187: Grad | G187: 48
B188: 2000 | C188: Arts & Sciences | D188: Geography | E188: UG | F188: Lower | G188: 22
B189: 2000 | C189: Arts & Sciences | D189: Geography | E189: UG | F189: Upper | G189: 18
B190: 2000 | C190: Arts & Sciences | D190: Geology | E190: Grad | F190: Grad | G190: 48
B191: 2000 | C191: Arts & Sciences | D191: Geology | E191: UG | F191: Lower | G191: 24
B192: 2000 | C192: Arts & Sciences | D192: Geology | E192: UG | F192: Upper | G192: 19
B193: 2000 | C193: Arts & Sciences | D193: German/Slavic | E193: Grad | F193: Grad | G193: 13
B194: 2000 | C194: Arts & Sciences | D194: German/Slavic | E194: UG | F194: Lower | G194: 15
B195: 2000 | C195: Arts & Sciences | D195: German/Slavic | E195: UG | F195: Upper | G195: 19
B196: 2000 | C196: Arts & Sciences | D196: History | E196: Grad | F196: Grad | G196: 11
B197: 2000 | C197: Arts & Sciences | D197: History | E197: UG | F197: Lower | G197: 68
B198: 2000 | C198: Arts & Sciences | D198: History | E198: UG | F198: Upper | G198: 32
B199: 2000 | C199: Arts & Sciences | D199: Honors Program | E199: UG | F199: Lower | G199: 11
B200: 2000 | C200: Arts & Sciences | D200: Honors Program | E200: UG | F200: Upper | G200: 21
B201: 2000 | C201: Arts & Sciences | D201: Int Physiology | E201: Grad | F201: Grad | G201: 44
... 1175 more rows

Sheet Fields
C3: Years | E3: College | G3: Department | K3: =E4 -> Architecture | M3: =C4 -> 1999
C4: 1999 | E4: Architecture | G4: A&S Admin | K4: =E5 -> Arts & Sciences | M4: =C5 -> 2000
C5: 2000 | E5: Arts & Sciences | G5: A&S AH Pgm/Cntr | K5: Business | M5: 2001
C6: 2001 | E6: Business | G6: A&S NS Pgm/Cntr | K6: Education | M6: 2002
C7: 2002 | E7: Education | G7: A&S SS Pgm/Cntr | K7: Engineering | M7: 2003
C8: 2003 | E8: Engineering | G8: Aerospace Eng | K8: Journalism | M8: 2004
C9: 2004 | E9: Journalism | G9: Anthropology | K9: Law | M9: 2005
C10: 2005 | E10: Law | G10: Applied Math | K10: Music | M10: 2006
C11: 2006 | E11: Music | G11: Arch/Planning | K11: All | M11: 2007
C12: 2007 | G12: Art/Art History | M12: All
G13: Astro Plnt Sci
G14: Atms Ocean Sci
G15: Biology-Ecol/Ev
G16: Biology-MCD
G17: Chem/Bio Eng
G18: Chem/Biochem
G19: Civ/Env/Arch En
G20: Classics
G21: Cntr for Nrsc
G22: Communication
G23: Comp Lit/Human
G24: Computer Sci
G25: E Asian Lng/Civ
G26: Economics
G27: Education
G28: Elec/Comp Eng
G29: Eng Mgmnt Pgm
G30: Engin Admin
G31: English
G32: Envirn Studies
G33: Environ Eng
G34: Ethnic Studies
G35: Film Studies
G36: French/Italian
G37: Geography
G38: Geology
G39: German/Slavic
G40: Herbst Humn Prg
G41: History
G42: Honors Program
G43: Int Physiology
G44: Intnl Affairs
G45: ITP
G46: Journalism
G47: Law
G48: Leeds Business
G49: Linguistics
G50: Mathematics
G51: Mechanical Eng
G52: Museum
G53: Music
G54: Philosophy
G55: Physics
G56: Political Sci
G57: Psychology
G58: Relig Studies
G59: ROTC
G60: Sociology
G61: Spanish/Port
G62: Spch/Lang/Hear
G63: Theatre/Dance
G64: Womens Studies
G65: Writing Program

Sheet Calculations
C3: Dashboard #1 | K3: Dashboard #2 | R3: Dashboard #3 Part 1 | AA3: Dashboard #3 Part 2
G4: ='Enrollment Dashboard'!AI5 -> 5 | N4: ='Enrollment Dashboard'!AI18 -> 2 | V4: =G4 -> 5
C5: Selected College | G5: =INDEX(List_College2,G4,0) -> Engineering | K5: Selected Year | N5: =INDEX(List_Year2,N4,0) -> 2000 | R5: Selected College | V5: =INDEX(List_College2,V4,0) -> Engineering
C6: Year | D6: College | G6: Enrollment | K6: Year | L6: College | O6: Enrollment | R6: Year | S6: College | V6: Degree | X6: Enrollment | AA6: Year | AB6: College | AE6: Degree | AG6: Enrollment
C7: 1999 | D7: =IF($G$5="All","",$G$5) -> Engineering | G7: =DSUM(DB,Data!$G$2,Calculations!C$6:F7) -> 1728 | K7: =IF($N$5="All",">1000",$N$5) -> 2000 | L7: Architecture | O7: =DSUM(DB,Data!$G$2,Calculations!K$6:N7) -> 140 | R7: 1999 | S7: =IF($V$5="All","",$V$5) -> Engineering | V7: Grad | X7: =DSUM(DB,Data!$G$2,Calculations!R$6:W7) -> 578 | AA7: 1999 | AB7: =IF($V$5="All","",$V$5) -> Engineering | AE7: UG | AG7: =DSUM(DB,Data!$G$2,Calculations!AA$6:AF7) -> 1150
C8: 2000 | D8: =IF($G$5="All","",$G$5) -> Engineering | G8: =DSUM(DB,Data!$G$2,Calculations!C$6:F8)-SUM(G$7:H7) -> 1694 | K8: =IF($N$5="All",">1000",$N$5) -> 2000 | L8: Arts & Sciences | O8: =DSUM(DB,Data!$G$2,Calculations!K$6:N8)-SUM(O$7:P7) -> 2700 | R8: 2000 | S8: =IF($V$5="All","",$V$5) -> Engineering | V8: Grad | X8: =DSUM(DB,Data!$G$2,Calculations!R$6:W8)-SUM(X$7:Y7) -> 476 | AA8: 2000 | AB8: =IF($V$5="All","",$V$5) -> Engineering | AE8: UG | AG8: =DSUM(DB,Data!$G$2,Calculations!AA$6:AF8)-SUM(AG$7:AH7) -> 1218
C9: 2001 | D9: Engineering | G9: =DSUM(DB,Data!$G$2,Calculations!C$6:F9)-SUM(G$7:H8) -> 1762 | K9: 2000 | L9: Business | O9: =DSUM(DB,Data!$G$2,Calculations!K$6:N9)-SUM(O$7:P8) -> 690 | R9: 2001 | S9: Engineering | V9: Grad | X9: =DSUM(DB,Data!$G$2,Calculations!R$6:W9)-SUM(X$7:Y8) -> 452 | AA9: 2001 | AB9: Engineering | AE9: UG | AG9: =DSUM(DB,Data!$G$2,Calculations!AA$6:AF9)-SUM(AG$7:AH8) -> 1310
C10: 2002 | D10: Engineering | G10: =DSUM(DB,Data!$G$2,Calculations!C$6:F10)-SUM(G$7:H9) -> 1678 | K10: 2000 | L10: Education | O10: =DSUM(DB,Data!$G$2,Calculations!K$6:N10)-SUM(O$7:P9) -> 160 | R10: 2002 | S10: Engineering | V10: Grad | X10: =DSUM(DB,Data!$G$2,Calculations!R$6:W10)-SUM(X$7:Y9) -> 578 | AA10: 2002 | AB10: Engineering | AE10: UG | AG10: =DSUM(DB,Data!$G$2,Calculations!AA$6:AF10)-SUM(AG$7:AH9) -> 1100
C11: 2003 | D11: Engineering | G11: =DSUM(DB,Data!$G$2,Calculations!C$6:F11)-SUM(G$7:H10) -> 1606 | K11: 2000 | L11: Engineering | O11: =DSUM(DB,Data!$G$2,Calculations!K$6:N11)-SUM(O$7:P10) -> 1694 | R11: 2003 | S11: Engineering | V11: Grad | X11: =DSUM(DB,Data!$G$2,Calculations!R$6:W11)-SUM(X$7:Y10) -> 470 | AA11: 2003 | AB11: Engineering | AE11: UG | AG11: =DSUM(DB,Data!$G$2,Calculations!AA$6:AF11)-SUM(AG$7:AH10) -> 1136
C12: 2004 | D12: Engineering | G12: =DSUM(DB,Data!$G$2,Calculations!C$6:F12)-SUM(G$7:H11) -> 1490 | K12: 2000 | L12: Journalism | O12: =DSUM(DB,Data!$G$2,Calculations!K$6:N12)-SUM(O$7:P11) -> 118 | R12: 2004 | S12: Engineering | V12: Grad | X12: =DSUM(DB,Data!$G$2,Calculations!R$6:W12)-SUM(X$7:Y11) -> 454 | AA12: 2004 | AB12: Engineering | AE12: UG | AG12: =DSUM(DB,Data!$G$2,Calculations!AA$6:AF12)-SUM(AG$7:AH11) -> 1036
C13: 2005 | D13: Engineering | G13: =DSUM(DB,Data!$G$2,Calculations!C$6:F13)-SUM(G$7:H12) -> 1444 | K13: 2000 | L13: Law | O13: =DSUM(DB,Data!$G$2,Calculations!K$6:N13)-SUM(O$7:P12) -> 262 | R13: 2005 | S13: Engineering | V13: Grad | X13: =DSUM(DB,Data!$G$2,Calculations!R$6:W13)-SUM(X$7:Y12) -> 272 | AA13: 2005 | AB13: Engineering | AE13: UG | AG13: =DSUM(DB,Data!$G$2,Calculations!AA$6:AF13)-SUM(AG$7:AH12) -> 1172
C14: 2006 | D14: Engineering | G14: =DSUM(DB,Data!$G$2,Calculations!C$6:F14)-SUM(G$7:H13) -> 1374 | K14: 2000 | L14: Music | O14: =DSUM(DB,Data!$G$2,Calculations!K$6:N14)-SUM(O$7:P13) -> 312 | R14: 2006 | S14: Engineering | V14: Grad | X14: =DSUM(DB,Data!$G$2,Calculations!R$6:W14)-SUM(X$7:Y13) -> 266 | AA14: 2006 | AB14: Engineering | AE14: UG | AG14: =DSUM(DB,Data!$G$2,Calculations!AA$6:AF14)-SUM(AG$7:AH13) -> 1108
C15: 2007 | D15: Engineering | G15: =DSUM(DB,Data!$G$2,Calculations!C$6:F15)-SUM(G$7:H14) -> 1642 | R15: 2007 | S15: Engineering | V15: Grad | X15: =DSUM(DB,Data!$G$2,Calculations!R$6:W15)-SUM(X$7:Y14) -> 352 | AA15: 2007 | AB15: Engineering | AE15: UG | AG15: =DSUM(DB,Data!$G$2,Calculations!AA$6:AF15)-SUM(AG$7:AH14) -> 1290
L16: Chart #2 Data
L17: Architecture | M17: =O7 -> 140
L18: Arts & Sciences | M18: =O8 -> 2700
L19: Business | M19: 690
L20: Education | M20: 160
L21: Engineering | M21: 1694
L22: Journalism | M22: 118
L23: Law | M23: 262
L24: Music | M24: 312

Sheet PSW_Sheet (hidden)
A1: %3c%3fxml+version%3d%221.0%22+encoding%3d%22utf-16%22%3f%3e%0d%0a%3cPageInputCells+xmlns%3axsi%3d%22http%3a%2f%2fwww.w3.org%2f2001%2fXMLSchema-instance%22+xmlns%3axsd%3d%22http%3a%2f%2fwww.w3.org%2f2001%2fXMLSchema%22%3e%0d%0a++%3cInputCells+InputPrefix%3d%22PSWInput_%22+ListPrefix%3d%22PSWList_%22+CellCount%3d%220%22+%2f%3e%0d%0a++%3cInputCells+InputPrefix%3d%22PSWInput_%22+ListPrefix%3d%22PSWList_%22+CellCount%3d%220%22+%2f%3e%0d%0a++%3cInputCells+InputPrefix%3d%22PSWInput_%22+ListPrefix%3d%22PSWList_%22+CellCount%3d%220%22+%2f%3e%0d%0a%3c%2fPageInputCells%3e
A3: %3c%3fxml+version%3d%221.0%22+encoding%3d%22utf-16%22%3f%3e%0d%0a%3cPageLayouts+xmlns%3axsi%3d%22http%3a%2f%2fwww.w3.org%2f2001%2fXMLSchema-instance%22+xmlns%3axsd%3d%22http%3a%2f%2fwww.w3.org%2f2001%2fXMLSchema%22+IsTabsVisible%3d%22true%22+InitialPageIndex%3d%220%22%3e%0d%0a++%3cPageLayout+Index%3d%220%22+IsPageHidingEnabled%3d%22false%22+Order%3d%220%22+FileName%3d%221.+Enrollment+Dashbo%22+IsAjaxEnabled%3d%22false%22+Recipient%3d%22Enter+e-mail+address+here.%22+Location%3d%22Bottom%22+Alignment%3d%22Center%22+AutoResponseEmail%3d%22False%22+NotificationEmail%3d%22False%22+PageForwarding%3d%22False%22+PageForwardingCustomPage%3d%22False%22+PageForwardingIsExternalURL%3d%22False%22+PageForwardingExternalURL%3d%22None%22%3e%0d%0a++++%3cControls%3e%0d%0a++++++%3cPageControl+Enabled%3d%22true%22+Type%3d%22Calculate%22+Order%3d%220%22+CellLink%3d%22DEFAULT%22+Name%3d%22Calculate%22+%2f%3e%0d%0a++++++%3cPageControl+Enabled%3d%22false%22+Type%3d%22Reset%22+Order%3d%221%22+CellLink%3d%22DEFAULT%22+Name%3d%22Reset%22+%2f%3e%0d%0a++++++%3cPageControl+Enabled%3d%22false%22+Type%3d%22Send+Results%22+Order%3d%222%22+CellLink%3d%22DEFAULT%22+Name%3d%22Submit%22+%2f%3e%0d%0a++++++%3cPageControl+Enabled%3d%22false%22+Type%3d%22Save%22+Order%3d%223%22+CellLink%3d%22DEFAULT%22+Name%3d%22Save%22+%2f%3e%0d%0a++++++%3cPageControl+Enabled%3d%22false%22+Type%3d%22Back%22+Order%3d%225%22+CellLink%3d%22DEFAULT%22+Name%3d%22Back%22+%2f%3e%0d%0a++++++%3cPageControl+Enabled%3d%22false%22+Type%3d%22Next%22+Order%3d%224%22+CellLink%3d%22DEFAULT%22+Name%3d%22Next%22+%2f%3e%0d%0a++++%3c%2fControls%3e%0d%0a++%3c%2fPageLayout%3e%0d%0a++%3cApplicationName%3eEnrollment+Dashboard+(Online)2%3c%2fApplicationName%3e%0d%0a%3c%2fPageLayouts%3e
A4: .Class53{font-family: Calibri; font-size:11pt; color:Black;border: 0.5pt None Black ;background-color:White; text-align:left;vertical-align:bottom;} .Class54{font-family: Times New Roman; font-size:14pt; color:#4F6228;font-weight: bold;border: 0.5pt None Black ;background-color:White; text-align:center;vertical-align:middle;} .Class55{font-family: Times New Roman; font-size:14pt; color:#4F6228;font-weight: bold;border: 0.5pt None Black ;background-color:White; text-align:left;vertical-align:bottom;} .Class56{font-family: Calibri; font-size:12pt; color:#4F6228;font-weight: bold;border-bottom-style: Solid ;border-top-width: 0.5pt ;border-left-width: 0.5pt ;border-right-width: 0.5pt ;border-bottom-width: 1.5pt ;border-top-color: Black ;border-left-color: Black ;border-right-color: Black ;border-bottom-color: #4F6228 ;background-color:White; text-align:center;vertical-align:middle;} .Class57{font-family: Calibri; font-size:11pt; color:Black;border-top-style: Solid ;border-top-width: 1.5pt ;border-left-width: 0.5pt ;border-right-width: 0.5pt ;border-bottom-width: 0.5pt ;border-top-color: #4F6228 ;border-left-color: Black ;border-right-color: Black ;border-bottom-color: Black ;background-color:White; text-align:left;vertical-align:bottom;} .Class58{font-family: Calibri; font-size:11pt; color:Black;border: 0.5pt None Black ;background-color:#EAF1DD; text-align:left;vertical-align:bottom;} .Class59{font-family: Calibri; font-size:11pt; color:Black;border: 0.5pt None Black ;background-color:#EAF1DD; text-align:right;vertical-align:bottom;} .Class60{font-family: Calibri; font-size:11pt; color:Black;border: 0.5pt None Black ;background-color:White; text-align:right;vertical-align:bottom;}
A5: tr-TR
A6: 2.0.0.0
A8: UEsFBgAAAAAAAAAAAAAAAAAAAAAAAA%3d%3d
A11: %3c%3fxml+version%3d%221.0%22+encoding%3d%22utf-16%22%3f%3e%0d%0a%3cSavingCells+xmlns%3axsi%3d%22http%3a%2f%2fwww.w3.org%2f2001%2fXMLSchema-instance%22+xmlns%3axsd%3d%22http%3a%2f%2fwww.w3.org%2f2001%2fXMLSchema%22+CellCount%3d%220%22+SavingCellPrefix%3d%22PSWSavingCell_%22+%2f%3e
